fUST/lending_fUST_20250817
["ID","MTS","AMOUNT","RATE_DAILY","PERIOD"]
[379681695,1755365445637,-480.0,0.00021133,2]
[379681696,1755365445647,-480.0,0.00021133,2]
[379681697,1755365445656,-151.0,0.00021133,2]
[379681698,1755365445665,-480.0,0.00021133,2]
[379681699,1755365445676,-480.0,0.00021133,2]
[379681700,1755365445685,-1545.86,0.00021133,2]
[379681701,1755365445694,-480.0,0.00021133,2]
[379681702,1755365445703,-480.0,0.00021133,2]
[379681703,1755365445713,-1454.408101,0.00021133,2]
[379681705,1755365445722,-1454.408101,0.00021133,2]
[379681706,1755365445731,-1304.23,0.00021133,2]
[379681707,1755365445740,-151.0,0.00021133,2]
[379681708,1755365445750,-1776.87,0.00021133,2]
[379681709,1755365445759,-1373.27,0.00021133,2]
[379681710,1755365445769,-480.0,0.00021133,2]
[379681712,1755365445779,-632.84,0.00021133,2]
[379681713,1755365445788,-480.0,0.00021133,2]
[379681714,1755365445798,-5095.22,0.00021133,2]
[379681715,1755365445808,-480.0,0.00021133,2]
[379681716,1755365445817,-201.78482819,0.00021133,2]
[379681717,1755365445826,-480.0,0.00021133,2]
[379681718,1755365445835,-480.0,0.00021133,2]
[379681719,1755365445845,-480.0,0.00021133,2]
[379681720,1755365445854,-300.0,0.00021133,2]
[379681721,1755365445863,-1092.02,0.00021133,2]
[379681722,1755365445873,-274.865374,0.00021133,2]
[379681723,1755365445882,-274.865374,0.00021133,2]
[379681724,1755365445891,-480.0,0.00021133,2]
[379681725,1755365445900,-13411.3,0.00021133,2]
[379681726,1755365445910,-480.0,0.00021133,2]
[379681727,1755365445919,-480.0,0.00021133,2]
[379681728,1755365445929,-2054.08,0.00021133,2]
[379681729,1755365445938,-480.0,0.00021133,2]
[379681730,1755365445947,-480.0,0.00021133,2]
[379681731,1755365445957,-480.0,0.00021133,2]
[379681732,1755365445966,-480.0,0.00021133,2]
[379681733,1755365445976,-977.62,0.00021133,2]
[379681734,1755365445986,-480.0,0.00021133,2]
[379681735,1755365445995,-526.18,0.00021133,2]
[379681736,1755365446004,-421.8441225,0.00021133,2]
[379681737,1755365446013,-480.0,0.00021133,2]
[379681738,1755365446023,-715.02,0.00021133,2]
[379681739,1755365446033,-480.0,0.00021133,2]
[379681740,1755365446042,-1341.57,0.00021133,2]
[379681741,1755365446052,-480.0,0.00021133,2]
[379681742,1755365446061,-222.268902,0.00021133,2]
[379681743,1755365446070,-302.36841629,0.00021133,2]
[379681744,1755365446079,-222.268902,0.00021133,2]
[379681745,1755365446089,-480.0,0.00021133,2]
[379681747,1755365446098,-297.681082,0.00021133,2]
[379681749,1755365446107,-297.681082,0.00021133,2]
[379681751,1755365446116,-480.0,0.00021133,2]
[379681753,1755365446126,-480.0,0.00021133,2]
[379681755,1755365446134,-478.1006777,0.00021133,2]
[379681757,1755365446144,-584.21,0.00021133,2]
[379681759,1755365446153,-637.69,0.00021139,2]
[379681761,1755365446162,-637.69,0.00021139,2]
[379681762,1755365446171,-637.69,0.00021139,2]
[379681763,1755365446181,-637.69,0.00021139,2]
[379681765,1755365446190,-637.87276831,0.00021139,2]
[379681767,1755365446200,-168.0,0.00021139,2]
[379681769,1755365446209,-151.0,0.000212,4]
[379681770,1755365446219,-480.0,0.00021232,2]
[379681772,1755365446228,-480.0,0.00021232,2]
[379681774,1755365446237,-544.888571,0.00021233,2]
[379681776,1755365446246,-544.888571,0.00021233,2]
[379681778,1755365446256,-598.7,0.00021233,2]
[379681779,1755365446265,-480.0,0.00021233,2]
[379681780,1755365446274,-920.63,0.00021233,2]
[379681781,1755365446283,-894.34,0.00021233,2]
[379681782,1755365446292,-480.0,0.00021233,2]
[379681783,1755365446301,-480.0,0.00021233,2]
[379681784,1755365446310,-1393.76,0.00021233,2]
[379681785,1755365446320,-624.17,0.00021233,2]
[379681786,1755365446329,-480.0,0.00021233,2]
[379681787,1755365446345,-480.0,0.00021233,2]
[379681788,1755365446355,-729.64,0.00021233,2]
[379681789,1755365446365,-480.0,0.00021233,2]
[379681790,1755365446374,-462.35472963,0.00021233,2]
[379681791,1755365446386,-598.08,0.00021233,2]
[379681792,1755365446395,-480.0,0.00021233,2]
[379681793,1755365446405,-480.0,0.00021233,2]
[379681794,1755365446415,-853.97,0.00021233,2]
[379681795,1755365446425,-480.0,0.00021233,2]
[379681796,1755365446434,-518.78,0.00021233,2]
[379681797,1755365446443,-1727.23,0.00021233,2]
[379681798,1755365446453,-524.200329,0.00021233,2]
[379681799,1755365446462,-524.200329,0.00021233,2]
[379681800,1755365446471,-480.0,0.00021233,2]
[379681801,1755365446480,-480.0,0.00021233,2]
[379681802,1755365446489,-239.138674,0.00021233,2]
[379681803,1755365446499,-239.138674,0.00021233,2]
[379681804,1755365446508,-480.0,0.00021233,2]
[379681805,1755365446517,-252.170832,0.00021233,2]
[379681806,1755365446526,-480.0,0.00021233,2]
[379681807,1755365446536,-151.0,0.00021233,2]
[379681808,1755365446545,-1229.106587,0.00021233,2]
[379681809,1755365446554,-480.0,0.00021233,2]
[379681810,1755365446564,-1229.106587,0.00021233,2]
[379681811,1755365446573,-480.0,0.00021233,2]
[379681812,1755365446582,-755.04,0.00021233,2]
[379681813,1755365446591,-480.0,0.00021233,2]
[379681814,1755365446600,-865.47,0.00021233,2]
[379681815,1755365446609,-206.023972,0.00021233,2]
[379681816,1755365446619,-206.023972,0.00021233,2]
[379681817,1755365446628,-151.0,0.00021233,2]
[379681818,1755365446640,-661.47,0.00021233,2]
[379681819,1755365446649,-151.0,0.00021233,2]
[379681820,1755365446658,-1222.12,0.00021233,2]
[379681821,1755365446667,-151.0,0.00021233,2]
[379681822,1755365446676,-151.0,0.00021233,2]
[379681823,1755365446685,-199.602392,0.00021233,2]
[379681824,1755365446695,-910.43,0.00021233,2]
[379681825,1755365446704,-377.4434442,0.00021233,2]
[379681826,1755365446713,-480.0,0.00021233,2]
[379681827,1755365446722,-1903.99,0.00021233,2]
[379681828,1755365446731,-151.0,0.00021233,2]
[379681829,1755365446741,-440.0,0.00021233,2]
[379681830,1755365446750,-1358.46,0.00021233,2]
[379681831,1755365446759,-151.0,0.00021233,2]
[379681832,1755365446768,-460.0,0.00021233,2]
[379681833,1755365446777,-1308.56,0.00021233,2]
[379681834,1755365446787,-486.41,0.00021233,2]
[379681835,1755365446796,-280.395717,0.00021233,2]
[379681836,1755365446805,-480.0,0.00021233,2]
[379681837,1755365446815,-3616.21,0.00021233,2]
[379681838,1755365446824,-1591.75,0.00021233,2]
[379681839,1755365446833,-939.2,0.00021233,2]
[379681840,1755365446842,-151.0,0.00021233,2]
[379681841,1755365446851,-151.0,0.00021233,2]
[379681842,1755365446860,-480.0,0.00021233,2]
[379681843,1755365446869,-1082.65,0.00021233,2]
[379681844,1755365446878,-563.2,0.00021233,2]
[379681845,1755365446887,-1517.3,0.00021233,2]
[379681846,1755365446896,-480.0,0.00021233,2]
[379681847,1755365446905,-151.0,0.00021233,2]
[379681848,1755365446915,-607.79,0.00021233,2]
[379681849,1755365446924,-918.79,0.00021233,2]
[379681850,1755365446934,-816.908349,0.00021233,2]
[379681851,1755365446943,-480.0,0.00021234,2]
[379681852,1755365446952,-151.0,0.00021234,2]
[379681853,1755365447069,-151.0,0.00021234,2]
[379681854,1755365447079,-151.0,0.00021234,2]
[379681855,1755365447089,-151.0,0.00021234,2]
[379681856,1755365447098,-232.776732,0.00021234,2]
[379681857,1755365447107,-151.0,0.00021234,2]
[379681858,1755365447116,-337.982564,0.00021234,2]
[379681859,1755365447125,-337.982564,0.00021234,2]
[379681860,1755365447134,-151.0,0.00021234,2]
[379681861,1755365447144,-151.0,0.00021234,2]
[379681862,1755365447153,-618.19,0.00021234,2]
[379681863,1755365447164,-1454.408101,0.00021234,2]
[379681864,1755365447173,-1454.408101,0.00021234,2]
[379681865,1755365447182,-14583.11,0.00021234,2]
[379681866,1755365447191,-2321.32,0.00021234,2]
[379681867,1755365447201,-222.268902,0.00021234,2]
[379681868,1755365447210,-222.268902,0.00021234,2]
[379681869,1755365447219,-8511.0289856,0.00021234,2]
[379681906,1755365447651,-460.0,0.00020583,2]
[379681908,1755365447661,-480.0,0.00020584,2]
[379681910,1755365447670,-313.51471562,0.00021234,2]
[379681921,1755365447780,-185.9,0.00020858,2]
[379681922,1755365447790,-1685.74629878,0.00021234,2]
[379681923,1755365447799,-544.888571,0.00021235,2]
[379681924,1755365447808,-544.888571,0.00021235,2]
[379681925,1755365447817,-440.0,0.00021235,2]
[379681927,1755365447827,-440.0,0.00021235,2]
[379681929,1755365447835,-480.0,0.00021235,2]
[379681931,1755365447845,-461.1873252,0.00021235,2]
[379681933,1755365447854,-1218.95,0.00021235,2]
[379681935,1755365447863,-480.0,0.00021235,2]
[379681937,1755365447872,-460.0,0.00021235,2]
[379681939,1755365447881,-490.42,0.00021235,2]
[379681941,1755365447890,-480.0,0.00021235,2]
[379681943,1755365447899,-181.244797,0.00021235,2]
[379681945,1755365447908,-181.244797,0.00021235,2]
[379681947,1755365447917,-480.0,0.00021235,2]
[379681949,1755365447927,-1175.1,0.00021235,2]
[379681951,1755365447936,-252.170832,0.00021235,2]
[379681953,1755365447945,-480.0,0.00021235,2]
[379681955,1755365447955,-151.0,0.00021235,2]
[379681957,1755365447964,-480.0,0.00021235,2]
[379681959,1755365447973,-480.0,0.00021235,2]
[379681961,1755365447982,-284.25880602,0.00021235,2]
[379681976,1755365448118,-195.74119398,0.00021235,2]
[379681977,1755365448129,-206.023972,0.00021235,2]
[379681978,1755365448139,-206.023972,0.00021235,2]
[379681979,1755365448148,-4109.58,0.00021235,2]
[379681980,1755365448157,-480.0,0.00021235,2]
[379681981,1755365448166,-480.0,0.00021235,2]
[379681983,1755365448175,-151.0,0.00021235,2]
[379681985,1755365448185,-480.0,0.00021235,2]
[379681987,1755365448194,-460.0,0.00021235,2]
[379681989,1755365448203,-563.71,0.00021235,2]
[379681991,1755365448212,-151.0,0.00021235,2]
[379681993,1755365448220,-153.114729,0.00021235,2]
[379681995,1755365448228,-4755.31,0.00021235,2]
[379681997,1755365448237,-521.4,0.00021235,2]
[379681999,1755365448246,-274.865374,0.00021235,2]
[379682000,1755365448254,-274.865374,0.00021235,2]
[379682001,1755365448273,-297.681082,0.00021235,2]
[379682002,1755365448302,-297.681082,0.00021235,2]
[379682003,1755365448334,-151.0,0.00021237,2]
[379682004,1755365448349,-296.67180926,0.00021239,2]
[379682005,1755365448359,-480.0,0.00021249,2]
[379682006,1755365448369,-480.0,0.00021249,2]
[379682007,1755365448379,-460.0,0.00021249,2]
[379682008,1755365448390,-480.0,0.00021249,2]
[379682009,1755365448400,-480.0,0.00021249,2]
[379682011,1755365448409,-607.35,0.00021249,2]
[379682013,1755365448421,-440.0,0.00021249,2]
[379682014,1755365448429,-460.0,0.00021249,2]
[379682015,1755365448439,-480.0,0.00021249,2]
[379682016,1755365448447,-480.0,0.00021249,2]
[379682017,1755365448456,-544.888571,0.00021249,2]
[379682018,1755365448465,-544.888571,0.00021249,2]
[379682019,1755365448474,-480.0,0.00021249,2]
[379682020,1755365448484,-480.0,0.00021249,2]
[379682021,1755365448494,-461.30288775,0.00021249,2]
[379682023,1755365448504,-480.0,0.00021249,2]
[379682025,1755365448514,-233.93880726,0.00021249,2]
[379682027,1755365448523,-480.0,0.00021249,2]
[379682029,1755365448537,-480.0,0.00021249,2]
[379682030,1755365448548,-480.0,0.00021249,2]
[379682031,1755365448558,-290.68906213,0.00021249,2]
[379682032,1755365448567,-480.0,0.00021249,2]
[379682033,1755365448575,-461.25740987,0.00021249,2]
[379682034,1755365448584,-480.0,0.00021249,2]
[379682035,1755365448593,-460.0,0.00021249,2]
[379682036,1755365448602,-480.0,0.00021249,2]
[379682037,1755365448611,-480.0,0.00021249,2]
[379682038,1755365448620,-460.0,0.00021249,2]
[379682039,1755365448630,-480.0,0.00021249,2]
[379682040,1755365448639,-480.0,0.00021249,2]
[379682041,1755365448648,-480.0,0.00021249,2]
[379682042,1755365448657,-461.47091946,0.00021249,2]
[379682043,1755365448666,-480.0,0.00021249,2]
[379682044,1755365448676,-480.0,0.00021249,2]
[379682045,1755365448685,-480.0,0.00021249,2]
[379682046,1755365448694,-480.0,0.00021249,2]
[379682047,1755365448704,-480.0,0.00021249,2]
[379682048,1755365448719,-480.0,0.00021249,2]
[379682049,1755365448728,-480.0,0.00021249,2]
[379682050,1755365448737,-480.0,0.00021249,2]
[379682051,1755365448746,-460.0,0.00021249,2]
[379682052,1755365448756,-460.0,0.00021249,2]
[379682053,1755365448765,-480.0,0.00021249,2]
[379682054,1755365448774,-480.0,0.00021249,2]
[379682055,1755365448783,-480.0,0.00021249,2]
[379682056,1755365448793,-493.06,0.00021249,2]
[379682057,1755365448802,-480.0,0.00021249,2]
[379682058,1755365448811,-460.0,0.00021249,2]
[379682059,1755365448820,-480.0,0.00021249,2]
[379682060,1755365448829,-480.0,0.00021249,2]
[379682061,1755365448838,-151.0,0.00021249,2]
[379682062,1755365448847,-1000.0,0.00021249,2]
[379682063,1755365448981,-546.36,0.00021249,2]
[379682064,1755365448991,-440.0,0.00021249,2]
[379682065,1755365449000,-480.0,0.00021249,2]
[379682066,1755365449009,-480.0,0.00021249,2]
[379682067,1755365449019,-151.0,0.00021249,2]
[379682068,1755365449028,-480.0,0.00021249,2]
[379682069,1755365449038,-480.0,0.00021249,2]
[379682070,1755365449047,-605.06,0.00021249,2]
[379682071,1755365449056,-500.0,0.00021249,2]
[379682072,1755365449065,-500.0,0.00021249,2]
[379682073,1755365449074,-151.0,0.00021249,2]
[379682074,1755365449083,-480.0,0.00021249,2]
[379682075,1755365449093,-480.0,0.00021249,2]
[379682076,1755365449102,-480.0,0.00021249,2]
[379682077,1755365449112,-480.0,0.00021249,2]
[379682078,1755365449121,-480.0,0.00021249,2]
[379682079,1755365449130,-151.0,0.00021249,2]
[379682080,1755365449140,-480.0,0.00021249,2]
[379682081,1755365449149,-298.104986,0.00021249,2]
[379682082,1755365449159,-480.0,0.00021249,2]
[379682083,1755365449168,-480.0,0.00021249,2]
[379682084,1755365449178,-480.0,0.00021249,2]
[379682085,1755365449187,-480.0,0.00021249,2]
[379682086,1755365449197,-480.0,0.00021249,2]
[379682087,1755365449206,-480.0,0.00021249,2]
[379682088,1755365449215,-480.0,0.00021249,2]
[379682089,1755365449225,-460.72316613,0.00021249,2]
[379682090,1755365449235,-480.0,0.00021249,2]
[379682091,1755365449245,-480.0,0.00021249,2]
[379682092,1755365449254,-480.0,0.00021249,2]
[379682093,1755365449264,-400.0,0.00021249,2]
[379682094,1755365449273,-480.0,0.00021249,2]
[379682095,1755365449282,-542.97,0.00021249,2]
[379682096,1755365449291,-480.0,0.00021249,2]
[379682097,1755365449300,-480.0,0.00021249,2]
[379682098,1755365449310,-480.0,0.00021249,2]
[379682099,1755365449319,-480.0,0.00021249,2]
[379682100,1755365449329,-460.41957166,0.00021249,2]
[379682101,1755365449340,-480.0,0.00021249,2]
[379682102,1755365449349,-505.44282443,0.00021249,2]
[379682103,1755365449359,-480.0,0.00021249,2]
[379682104,1755365449369,-480.0,0.00021249,2]
[379682105,1755365449379,-460.0,0.00021249,2]
[379682106,1755365449388,-480.0,0.00021249,2]
[379682107,1755365449398,-480.0,0.00021249,2]
[379682108,1755365449407,-1131.29378739,0.00021249,2]
[379682115,1755365617675,500.0,0.00019999,2]
[379682140,1755365840341,5000.0,0.000201,2]
[379682141,1755365855675,1328.7644471,0.000201,2]
[379682152,1755365994369,326.955383,0.00013699,2]
[379682153,1755366037076,200.0,0.00025,120]
[379682155,1755366136672,424.901033,0.00019869,2]
[379682156,1755366137962,251.67917164,0.00019952,2]
[379682171,1755366283429,235.897667,0.00019556,2]
[379682182,1755366339544,944.1467425,0.00019557,2]
[379682265,1755366632545,-685.0,0.00020187,5]
[379682301,1755366633058,-326.955383,0.00020187,2]
[379682303,1755366633067,-159.28441502,0.00020277,2]
[379682305,1755366633078,-159.28441502,0.00020475,2]
[379682307,1755366633088,-1782.56616244,0.00020477,2]
[379682309,1755366633097,-848.5,0.00020566,10]
[379682310,1755366633107,-385.22,0.00020569,3]
[379682311,1755366633118,-1200.0,0.00020572,2]
[379682312,1755366633129,-500.0,0.00020573,2]
[379682314,1755366633139,-500.0,0.00020573,2]
[379682316,1755366633148,-500.0,0.00020573,2]
[379682318,1755366633158,-300.0,0.00020574,2]
[379682320,1755366633168,-480.0,0.00020574,2]
[379682322,1755366633177,-500.0,0.00020574,2]
[379682323,1755366633187,-460.63038383,0.00020574,2]
[379682325,1755366633197,-480.0,0.00020574,2]
[379682326,1755366633206,-480.0,0.00020574,2]
[379682327,1755366633216,-500.0,0.00020575,2]
[379682328,1755366633227,-500.0,0.00020575,2]
[379682329,1755366633237,-516.72908483,0.00020575,2]
[379682330,1755366633247,-500.0,0.00020575,2]
[379682332,1755366633256,-500.0,0.00020575,2]
[379682333,1755366633265,-252.55197939,0.00020575,2]
[379682334,1755366633275,-500.0,0.00020575,2]
[379682335,1755366633285,-399.64836758,0.00020575,2]
[379682337,1755366633294,-500.0,0.00020575,2]
[379682339,1755366633304,-197.05939164,0.00020575,2]
[379682341,1755366633314,-500.0,0.00020575,2]
[379682343,1755366633323,-163.11482928,0.00020575,2]
[379682345,1755366633333,-500.0,0.00020575,2]
[379682347,1755366633343,-167.0674,0.00020575,2]
[379682349,1755366633354,-500.0,0.00020575,2]
[379682351,1755366633364,-500.0,0.00020575,2]
[379682353,1755366633374,-500.0,0.00020575,2]
[379682355,1755366633383,-500.0,0.00020575,2]
[379682357,1755366633395,-500.0,0.00020575,2]
[379682359,1755366633405,-500.0,0.00020575,2]
[379682361,1755366633414,-500.0,0.00020575,2]
[379682363,1755366633423,-500.0,0.00020575,2]
[379682365,1755366633432,-500.0,0.00020575,2]
[379682367,1755366633442,-500.0,0.00020575,2]
[379682369,1755366633452,-250.0,0.00020575,2]
[379682371,1755366633462,-500.0,0.00020575,2]
[379682373,1755366633471,-500.0,0.00020575,2]
[379682375,1755366633480,-500.0,0.00020575,2]
[379682377,1755366633490,-300.0,0.00020575,2]
[379682379,1755366633499,-300.0,0.00020575,2]
[379682381,1755366633509,-500.0,0.00020575,2]
[379682383,1755366633519,-500.0,0.00020575,2]
[379682385,1755366633529,-250.0,0.00020575,2]
[379682387,1755366633538,-1200.0,0.00020575,2]
[379682389,1755366633547,-480.0,0.00020575,2]
[379682391,1755366633557,-962.49,0.00020575,2]
[379682393,1755366633567,-1281.34,0.00020575,2]
[379682395,1755366633577,-500.0,0.00020575,2]
[379682397,1755366633586,-4331.84,0.00020575,2]
[379682399,1755366633596,-50000.0,0.00020576,2]
[379682401,1755366633605,-460.0,0.00020576,2]
[379682403,1755366633614,-480.0,0.00020576,2]
[379682405,1755366633623,-480.0,0.00020576,2]
[379682407,1755366633634,-533.74,0.00020576,2]
[379682409,1755366633644,-460.0,0.00020576,2]
[379682411,1755366633653,-480.0,0.00020576,2]
[379682413,1755366633662,-460.0,0.00020576,2]
[379682415,1755366633672,-480.0,0.00020576,2]
[379682417,1755366633682,-480.0,0.00020576,2]
[379682419,1755366633691,-480.0,0.00020576,2]
[379682421,1755366633700,-166.67088707,0.00020576,2]
[379682423,1755366633714,-480.0,0.00020576,2]
[379682425,1755366633724,-480.0,0.00020576,2]
[379682427,1755366633733,-480.0,0.00020576,2]
[379682429,1755366633743,-480.0,0.00020576,2]
[379682431,1755366633754,-480.0,0.00020576,2]
[379682433,1755366633764,-480.0,0.00020576,2]
[379682435,1755366633774,-480.0,0.00020576,2]
[379682437,1755366633785,-461.25775913,0.00020576,2]
[379682439,1755366633794,-480.0,0.00020576,2]
[379682441,1755366633804,-480.0,0.00020576,2]
[379682443,1755366633815,-450.00000021,0.00020576,2]
[379682445,1755366633824,-480.0,0.00020576,2]
[379682447,1755366633833,-480.0,0.00020576,2]
[379682449,1755366633843,-337.63814961,0.00020576,2]
[379682451,1755366633853,-480.0,0.00020576,2]
[379682453,1755366633862,-460.0,0.00020576,2]
[379682456,1755366633872,-460.0,0.00020576,2]
[379682458,1755366633882,-460.0,0.00020576,2]
[379682460,1755366633891,-460.0,0.00020576,2]
[379682461,1755366633901,-460.0,0.00020576,2]
[379682463,1755366633911,-363.50603091,0.00020576,2]
[379682465,1755366633921,-460.0,0.00020576,2]
[379682467,1755366633931,-480.0,0.00020576,2]
[379682469,1755366633940,-460.0,0.00020576,2]
[379682471,1755366633950,-460.0,0.00020576,2]
[379682474,1755366633960,-522.50943268,0.00020576,2]
[379682476,1755366633971,-480.0,0.00020576,2]
[379682478,1755366633981,-480.0,0.00020576,2]
[379682479,1755366633991,-480.0,0.00020576,2]
[379682482,1755366634003,-480.0,0.00020576,2]
[379682483,1755366634013,-501.03,0.00020576,2]
[379682485,1755366634023,-480.0,0.00020576,2]
[379682487,1755366634034,-480.0,0.00020576,2]
[379682489,1755366634043,-460.0,0.00020576,2]
[379682491,1755366634053,-2158.2,0.00020576,2]
[379682493,1755366634063,-480.0,0.00020576,2]
[379682496,1755366634074,-480.0,0.00020576,2]
[379682498,1755366634084,-480.0,0.00020576,2]
[379682500,1755366634094,-480.0,0.00020576,2]
[379682502,1755366634114,-632.73,0.00020576,2]
[379682504,1755366634124,-460.0,0.00020576,2]
[379682506,1755366634133,-512.02,0.00020576,2]
[379682508,1755366634143,-480.0,0.00020576,2]
[379682510,1755366634152,-170.24076932,0.00020576,2]
[379682512,1755366634162,-694.83,0.00020576,2]
[379682514,1755366634171,-480.0,0.00020576,2]
[379682516,1755366634181,-480.0,0.00020576,2]
[379682517,1755366634190,-480.0,0.00020576,2]
[379682520,1755366634201,-480.0,0.00020576,2]
[379682522,1755366634211,-480.0,0.00020576,2]
[379682524,1755366634221,-480.0,0.00020576,2]
[379682525,1755366634231,-480.0,0.00020576,2]
[379682527,1755366634240,-480.0,0.00020576,2]
[379682529,1755366634250,-176.5618196,0.00020576,2]
[379682531,1755366634259,-480.0,0.00020576,2]
[379682533,1755366634268,-627.86870737,0.00020576,2]
[379682535,1755366634278,-480.0,0.00020576,2]
[379682537,1755366634289,-460.0,0.00020576,2]
[379682539,1755366634299,-480.0,0.00020576,2]
[379682541,1755366634308,-480.0,0.00020576,2]
[379682543,1755366634318,-522.239909,0.00020576,2]
[379682545,1755366634327,-480.0,0.00020576,2]
[379682547,1755366634337,-460.0,0.00020576,2]
[379682549,1755366634347,-845.14,0.00020577,2]
[379682551,1755366634357,-1304.44,0.00020577,2]
[379682554,1755366634370,-480.0,0.00020577,2]
[379682555,1755366634379,-480.0,0.00020577,2]
[379682557,1755366634388,-1589.07,0.00020577,2]
[379682559,1755366634398,-480.0,0.00020577,2]
[379682561,1755366634408,-363.36591585,0.00020577,2]
[379682563,1755366634418,-1352.63,0.00020577,2]
[379682565,1755366634427,-480.0,0.00020577,2]
[379682567,1755366634438,-480.0,0.00020577,2]
[379682569,1755366634448,-814.42,0.00020577,2]
[379682572,1755366634458,-460.0,0.00020577,2]
[379682573,1755366634467,-480.0,0.00020577,2]
[379682575,1755366634479,-462.80538603,0.00020577,2]
[379682577,1755366634488,-1537.97,0.00020577,2]
[379682579,1755366634498,-480.0,0.00020577,2]
[379682581,1755366634507,-480.0,0.00020577,2]
[379682584,1755366634517,-1171.41,0.00020577,2]
[379682586,1755366634527,-7287.03,0.00020577,2]
[379682588,1755366634536,-480.0,0.00020577,2]
[379682589,1755366634545,-1035.54,0.00020577,2]
[379682591,1755366634554,-480.0,0.00020577,2]
[379682593,1755366634564,-1358.02,0.00020577,2]
[379682595,1755366634573,-480.0,0.00020577,2]
[379682597,1755366634583,-480.0,0.00020577,2]
[379682599,1755366634593,-2710.85,0.00020577,2]
[379682601,1755366634603,-480.0,0.00020577,2]
[379682603,1755366634612,-460.0,0.00020577,2]
[379682605,1755366634622,-4169.59,0.00020577,2]
[379682607,1755366634631,-480.0,0.00020577,2]
[379682609,1755366634640,-460.0,0.00020577,2]
[379682611,1755366634649,-561.9,0.00020577,2]
[379682613,1755366634658,-460.0,0.00020577,2]
[379682615,1755366634668,-480.0,0.00020577,2]
[379682617,1755366634677,-3110.74,0.00020577,2]
[379682619,1755366634687,-609.01,0.00020577,2]
[379682621,1755366634696,-480.0,0.00020577,2]
[379682623,1755366634708,-1194.39,0.00020577,2]
[379682625,1755366634717,-602.24,0.00020577,2]
[379682627,1755366634727,-460.0,0.00020577,2]
[379682629,1755366634737,-1052.23,0.00020577,2]
[379682631,1755366634747,-460.0,0.00020577,2]
[379682633,1755366634756,-480.0,0.00020577,2]
[379682635,1755366634766,-1345.46,0.00020577,2]
[379682637,1755366634775,-495.56,0.00020577,2]
[379682639,1755366634790,-1335.2,0.00020577,2]
[379682641,1755366634800,-461.09610034,0.00020578,2]
[379682643,1755366634810,-480.0,0.00020578,2]
[379682645,1755366634819,-480.0,0.00020578,2]
[379682647,1755366634829,-480.0,0.00020578,2]
[379682649,1755366634839,-460.0,0.00020578,2]
[379682651,1755366634848,-480.0,0.00020578,2]
[379682653,1755366634863,-929.88,0.00020578,2]
[379682655,1755366634873,-391.83370123,0.00020578,2]
[379682657,1755366634882,-460.0,0.00020578,2]
[379682659,1755366634891,-480.0,0.00020578,2]
[379682661,1755366634901,-480.0,0.00020578,2]
[379682663,1755366634912,-480.0,0.00020578,2]